Cogmind - Beta 13 @@@ ROGUE MODE // 2024.04.21 @ 22:35:35 Player: A Moose Result: Destroyed by S-27 Virus with Autogun Performance ------------- Evolutions (3) 1500 Regions Visited (8) 1600 Robots Destroyed (98) 490 Value Destroyed (2766) 2766 Prototype IDs (15) 300 Alien Tech Used (0) 0 Bonus (331) 331 TOTAL SCORE: 6987 Bonus ------- High Alert Combat Kills 47 Aligned with FarCom 300 Friendly Fire -16 Cogmind --------- Core Integrity 0/700 Matter 247/300 Energy 310/310 System Corruption 3% Temperature Cool (0) Movement Walking (190) Ox1 Location -7/Storage Parts ------- > --- POWER (1) -------- Heavy Deuterium Engine > --- PROPULSION (2) --- Carbon-fiber Leg > --- UTILITY (7) ------ Medium Storage Unit Experimental Sensor Array Improved Signal Interpreter Improved Targeting Computer Core Analyzer Hacking Suite > --- WEAPON (3) ------- Katana > --- INVENTORY (10) --- Enhanced Nuclear Core Hacking Suite System Restoration Module Improved Trap Extractor (2/6 Proton Bomb) Trap Reconfigurator Cooled Pulse Rifle Peak State ------------ > --- POWER ------------ Micro Nuclear Core > --- PROPULSION ------- Armored Wheel Armored Wheel > --- UTILITY ---------- Large Storage Unit Experimental Sensor Array Improved Signal Interpreter Improved Melee Analysis Suite Improved Melee Analysis Suite Hacking Suite Hacking Suite > --- WEAPON ----------- Gatling Laser Assault Cannon Heavy Mace > --- INVENTORY -------- Light Deuterium Engine Light Nuclear Core Improved Heat Sink Hardened Medium Armor Plating Hardened Medium Armor Plating Hardened Medium Armor Plating Hardened Medium Armor Plating Hardened Medium Armor Plating Hardened Heavy Armor Plating Hacking Suite Hacking Suite Trap Reconfigurator Improved Datajack [Rating: 50] Favorites ----------- Power Heavy Ion Engine Engine Heavy Ion Engine Power Core Micro Nuclear Core Propulsion Armored Wheel Leg Carbon-fiber Leg Wheel Armored Wheel Flight Unit Improved VTOL Module Utility Hacking Suite Device Experimental Sensor Array Storage Large Storage Unit Processor Improved Melee Analysis Suite Hackware Hacking Suite Protection Propulsion Shielding Weapon Shotgun Energy Gun Medium Laser Energy Cannon Latent Energy Streamer Ballistic Gun Shotgun Ballistic Cannon Flak Cannon Launcher Proton Missile Launcher Impact Weapon Heavy Mace Slashing Weapon Katana Build | -11 -10 -9 -9 -9 -8 -8 -7 -7 ------- Run | Yrd Mat Mat Min Exi Min Mat Fac Sto Slots Evolved 6 | . . 2 . . . 2 2 . Power . | . . . . . . . . . Propulsion . | . . . . . . . . . Utility 5 | . . 2 . . . 2 1 . Weapon 1 | . . . . . . . 1 . Parts Attached 108 | 7 4 13 6 6 . 24 36 12 Power 10 | 1 1 1 1 . . 3 2 1 Engine 8 | 1 1 1 1 . . 2 1 1 Core 2 | . . . . . . 1 1 . Reactor . | . . . . . . . . . Propulsion 16 | 3 . 4 . . . 5 1 3 Treads . | . . . . . . . . . Leg 1 | . . . . . . . . 1 Wheel 13 | 3 . 4 . . . 5 1 . Hover . | . . . . . . . . . Flight 2 | . . . . . . . . 2 Utility 53 | 1 3 4 5 4 . 6 23 7 Device 22 | . . 1 1 3 . 1 12 4 Storage 5 | 1 2 . . . . . 1 1 Processor 8 | . 1 1 . . . 3 2 1 Hackware 3 | . . . . . . 2 1 . Protection 15 | . . 2 4 1 . . 7 1 Artifact . | . . . . . . . . . Weapon 29 | 2 . 4 . 2 . 10 10 1 Energy Gun 3 | 1 . 1 . . . . 1 . Energy Cannon 1 | . . . . 1 . . . . Ballistic Gun 10 | 1 . 3 . 1 . 5 . . Ballistic Cannon 4 | . . . . . . . 4 . Launcher 5 | . . . . . . 3 2 . Special Weapon . | . . . . . . . . . Impact Weapon 3 | . . . . . . 2 1 . Slashing Weapon 3 | . . . . . . . 2 1 Piercing Weapon . | . . . . . . . . . Special Melee Weapon . | . . . . . . . . . Unidentified Prototypes 8 | . . . 1 3 . 1 . 3 Parts Lost 36 | . 1 4 1 . . 17 11 2 Power 4 | . 1 . . . . 3 . . Propulsion 7 | . . 1 . . . 3 3 . Utility 12 | . . 2 1 . . 4 4 1 Weapon 13 | . . 1 . . . 7 4 1 Highest Loss Streak 12 | . 1 1 1 . . 12 7 2 To Critical Strikes . | . . . . . . . . . Average Slot Usage (%) 90 | . 90 90 96 98 100 90 91 79 Engine 7 | . 13 11 11 11 11 6 3 5 Wheel 16 | . 28 21 22 22 22 17 13 . Device 4 | . . 7 . . . . 4 12 Storage 7 | . 14 11 11 11 11 9 3 . Processor 15 | . 5 9 11 11 11 13 23 22 Hackware 7 | . . . . . . 16 13 7 Protection 8 | . . 8 18 21 22 8 5 6 Energy Gun 2 | . 14 3 . . . . 1 . Ballistic Gun 9 | . 14 18 22 21 22 11 . . Ballistic Cannon 2 | . . . . . . . 7 . Impact Weapon 1 | . . . . . . 4 3 . Slashing Weapon 2 | . . . . . . . 3 14 Naked Turns . | . . . . . . . . . Heaviest Build 73 | 13 28 38 46 41 41 41 73 31 Greatest Support 26 | 26 20 24 24 24 24 24 24 15 Greatest Overweight (x) 6 | . 1 1 1 1 1 2 6 2 Average Overweight (x) . | . . 1 1 1 1 . . . Largest Inventory Capacity 20 | 8 15 15 15 15 15 15 20 10 Average Capacity 11 | 7 10 15 15 15 15 15 9 5 Most Carried 15 | 7 12 15 15 15 15 15 15 6 Average Carried 10 | 2 8 14 14 14 15 14 8 4 Final Capacity 15 | 8 15 15 15 15 15 15 5 10 Final Carried 15 | 7 12 15 15 15 15 9 5 6 Class Distribution -------------------- 50% | Mutant 26% | Hacker-Mutant 13% | Assassin 9% | Hacker-Assassin Dominant Class ---------------- Mutant | -10/Materials Mutant | -9/Materials Mutant | -9/Mines Mutant | -9/Exiles Mutant | -8/Mines Hacker-Mutant | -8/Materials Hacker-Mutant | -7/Factory Assassin | -7/Storage Resources | -11 -10 -9 -9 -9 -8 -8 -7 -7 ----------- Run | Yrd Mat Mat Min Exi Min Mat Fac Sto Matter Collected 2408 | 213 127 462 193 . 98 326 690 299 Remotely . | . . . . . . . . . Salvage Created 3325 | 74 329 1028 172 . 98 524 847 253 Parts 218 | 13 27 71 4 . 7 38 44 14 Haulers Intercepted 8 | . 1 3 . . . 1 1 2 Recyclers Shooed 5 | . 1 1 . . . . 2 1 Parts Field Recycled . | . . . . . . . . . Retrieved Matter . | . . . . . . . . . Parts Self-Destructed . | . . . . . . . . . Prevented . | . . . . . . . . . Kills | -11 -10 -9 -9 -9 -8 -8 -7 -7 ------- Run | Yrd Mat Mat Min Exi Min Mat Fac Sto Combat Hostiles Destroyed 60 | . 6 18 2 . 5 15 11 3 Melee 7 | . . . . . . 2 2 3 Guns 40 | . 6 18 2 . 5 7 2 . Cannons 3 | . . . . . . . 3 . AOE 9 | . . . . . . 6 3 . Classes Destroyed 15 | 1 7 4 . . 1 1 1 . Worker 4 | . 1 2 . . . . 1 . Builder 3 | . . 1 . . . 1 . 1 Tunneler 4 | 3 . 1 . . . . . . Hauler 8 | . 1 3 . . . 1 1 2 Recycler 6 | . 1 2 1 . . . 2 . Mechanic 1 | . . 1 . . . . . . Operator 2 | . 1 . . . . 1 . . Watcher 10 | . 1 2 . . . 2 5 . Swarmer 14 | . 3 4 . . 4 3 . . Grunt 20 | . 3 9 1 . . 5 1 1 Brawler 2 | . . 1 . . . . 1 . Sentry 7 | . . 4 . . . 2 1 . Specialist 7 | . . . . . . 3 4 . Hunter 4 | . . . . . 1 2 1 . Programmer 5 | . . . . . . . 3 2 Best Kill Streak 8 | 2 4 8 1 . 4 7 4 1 Combat Bots Only 5 | . 3 4 1 . 4 5 4 1 Max Kills in Single Turn 2 | 1 2 2 1 . 1 2 2 1 Gunslinging 1 | . 1 . . . . . . . Exploded 2 | . . . . . . 1 2 . Melee 1 | . . . . . . 1 1 1 Uniques/NPCs Destroyed 1 | . . . 1 . . . . . YI-UF0 (-9/Mines) Combat | -11 -10 -9 -9 -9 -8 -8 -7 -7 -------- Run | Yrd Mat Mat Min Exi Min Mat Fac Sto Hostile Shots Fired 524 | . 38 74 27 . 21 198 127 39 Missed 157 | . 7 26 9 . 3 72 34 6 Damage Taken 5990 | . 287 529 606 . 206 1901 1979 482 Core 1439 | . 78 135 61 . . 465 584 116 Absorbed by Shields . | . . . . . . . . . Redirected to Shielding 42 | . . . 3 . 2 37 . . Core Remaining (%) 58 | 100 68 . . . 51 15 . . Volleys Fired 214 | 8 27 66 12 . 9 47 45 . Largest 2 | 2 2 2 2 . 2 2 2 . Hottest 124 | 70 70 73 46 . 46 58 124 . Shots Fired 389 | 16 54 131 24 . 18 78 68 . Gun 313 | 16 54 131 24 . 18 62 8 . Cannon 51 | . . . . . . . 51 . Launcher 25 | . . . . . . 16 9 . Special . | . . . . . . . . . Kinetic 299 | 8 27 109 24 . 18 62 51 . Thermal 65 | 8 27 22 . . . . 8 . Explosive 16 | . . . . . . 16 . . Electromagnetic 9 | . . . . . . . 9 . Robot Hit Streak 14 | 2 6 14 8 . 5 9 6 . Robot Miss Streak 21 | 4 5 5 2 . 5 10 21 . Penetration Max . | . . . . . . . . . Secondary Targets 2 | . 1 . . . . 1 . . Max Gunslinging Chain 1 | . 1 . . . . 1 . . Shots Hit Robots 294 | 7 29 90 20 . 11 58 63 16 Core Hits 178 | 5 19 56 9 . 8 35 41 5 Critical Kills 2 | . . 1 . . . . 1 . Critical Parts Destroyed 3 | . . . . . . 1 2 . Critical Strikes 9 | . . 3 . . . 1 3 2 Burn 2 | . . 2 . . . . . . Destroy 1 | . . 1 . . . . . . Smash 4 | . . . . . . 1 3 . Sever 2 | . . . . . . . . 2 Melee Attacks 55 | . . . . . . 10 22 23 Impact 31 | . . . . . . 10 21 . Slashing 24 | . . . . . . . 1 23 Piercing . | . . . . . . . . . Sneak Attacks 11 | . . . . . . . 4 7 Combat Hostiles 1 | . . . . . . . 1 . Follow-up Attacks 1 | . . . . . . . . 1 Damage Inflicted 7505 | 91 329 1385 317 . 143 2312 2041 887 Guns 3066 | 91 329 1385 317 . 143 659 142 . Cannons 656 | . . . . . . . 656 . Explosions 1754 | . . . . . . 1392 362 . Melee 2029 | . . . . . . 261 881 887 Ramming . | . . . . . . . . . Kinetic 3203 | 40 166 1222 317 . 143 659 656 . Thermal 1090 | 51 163 163 . . . 433 280 . Explosive 959 | . . . . . . 959 . . Electromagnetic 224 | . . . . . . . 224 . Impact 1103 | . . . . . . 261 842 . Slashing 926 | . . . . . . . 39 887 Piercing . | . . . . . . . . . Highest Corruption 6 | . . . . . . . 6 3 Average Corruption 2 | . . . . . . . 3 2 Corruption Purged 6 | . . . . . . . 6 . Corruption Blocked . | . . . . . . . . . Effects 24 | . . . . . . . 17 7 Message Errors 6 | . . . . . . . 3 3 Matter Fused 3 | . . . . . . . 1 2 Heat Flow Errors 5 | . . . . . . . 5 . Energy Discharges 1 | . . . . . . . 1 . Data Loss (minor) 2 | . . . . . . . 1 1 Data Loss (major) 5 | . . . . . . . 4 1 Misfires 1 | . . . . . . . 1 . Alerts 1 | . . . . . . . 1 . Overload Shots . | . . . . . . . . . Overflow Damage 527 | . . . . . . 139 303 85 Projectiles . | . . . . . . . . . Explosions 116 | . . . . . . 93 23 . Melee 411 | . . . . . . 46 280 85 Knockbacks 17 | . . . . . . . 17 . Impact 1 | . . . . . . . 1 . Kinetic 16 | . . . . . . . 16 . Secondary . | . . . . . . . . . Self-Inflicted Damage 38 | . . . . . . 38 . . Shots 1 | . . . . . . 1 . . Rammed . | . . . . . . . . . Targets Rammed . | . . . . . . . . . Kicked . | . . . . . . . . . Crushed . | . . . . . . . . . Highest Temperature 394 | 80 150 54 17 . . 4 394 3 Average Temperature 70 | 40 42 15 7 . . 2 133 3 Received Heat Transfer 621 | . 60 177 21 . . 162 120 81 Effects 2 | . . . . . . . 2 . Interference 1 | . . . . . . . 1 . Damage (minor) 1 | . . . . . . . 1 . Siege Activations . | . . . . . . . . . Robots Corrupted . | . . . . . . . . . Combat Hostiles . | . . . . . . . . . Parts Fried 4 | . . . . . . 1 3 . Impact Corruptions 14 | . . . . . . 3 11 . Robots Melted . | . . . . . . . . . Combat Hostiles . | . . . . . . . . . Parts Melted 3 | . . 2 . . . . 1 . Heat Transferred 1908 | 148 481 629 . . . 250 400 . Parts Sabotaged . | . . . . . . . . . Parts Stolen . | . . . . . . . . . Parts Stripped . | . . . . . . . . . Power Chain Reactions 2 | . . . . . . . 2 . Alert | -11 -10 -9 -9 -9 -8 -8 -7 -7 ------- Run | Yrd Mat Mat Min Exi Min Mat Fac Sto Peak Influence 448 | 15 228 448 204 . 135 445 262 190 Initial 175 | . 9 96 174 . . 52 175 96 Average 163 | 5 137 266 180 . 74 174 149 110 Maximum Alert Level 2 | . 1 2 1 . . 2 1 . Low Security (%) 70 | 100 81 20 91 . 100 50 78 100 Level 1 26 | . 18 68 8 . . 41 21 . Level 2 3 | . . 11 . . . 7 . . Level 3 . | . . . . . . . . . Level 4 . | . . . . . . . . . Level 5 . | . . . . . . . . . High Security . | . . . . . . . . . Max Security . | . . . . . . . . . Squads Dispatched 17 | . 1 3 . . . 4 6 3 Investigation 3 | . 1 1 . . . 1 . . Extermination 4 | . . . . . . . 2 2 Reinforcement 10 | . . 2 . . . 3 4 1 Assault . | . . . . . . . . . Garrison . | . . . . . . . . . Intercept . | . . . . . . . . . Searches Triggered . | . . . . . . . . . Construction Impeded 1 | . . 1 . . . . . . Haulers Reinforced 1 | . . . . . . . . 1 Active Scanning Responses . | . . . . . . . . . Cargo Convoy Interrupts 1 | . . . . . . . 1 . Stealth | -11 -10 -9 -9 -9 -8 -8 -7 -7 --------- Run | Yrd Mat Mat Min Exi Min Mat Fac Sto Distress Signals 7 | . . 3 . . . 1 2 1 Communications Jammed . | . . . . . . . . . Distress Signals . | . . . . . . . . . Times Spotted 106 | . 12 24 4 . 5 23 28 10 Peak Tracking Total 9 | . 4 3 2 . 4 6 6 9 Tactical Retreats 7 | . . 1 1 . . 1 4 . Traps | -11 -10 -9 -9 -9 -8 -8 -7 -7 ------- Run | Yrd Mat Mat Min Exi Min Mat Fac Sto Traps Triggered 2 | . 1 1 . . . . . . Indirectly . | . . . . . . . . . Trap Hack Attempts . | . . . . . . . . . Triggered . | . . . . . . . . . Disarmed . | . . . . . . . . . Reprogrammed . | . . . . . . . . . Reused 5 | . . . . . . 1 4 . Traps Reconfigurated 34 | . . . . . . 6 26 2 Traps Extracted 2 | . . . . . . . . 2 Installed . | . . . . . . . . . Triggered 7 | . . . . . . 1 6 . Most Traps Carried 2 | . . . . . . . . 2 Machines | -11 -10 -9 -9 -9 -8 -8 -7 -7 ---------- Run | Yrd Mat Mat Min Exi Min Mat Fac Sto Machines Disabled 13 | . . 1 . . 1 5 4 2 Max in Single Turn 3 | . . 1 . . 1 3 3 1 Machines Repaired . | . . . . . . . . . Machines Dismantled . | . . . . . . . . . Machines Sabotaged . | . . . . . . . . . Overloaded Fab Kills . | . . . . . . . . . Hacking | -11 -10 -9 -9 -9 -8 -8 -7 -7 --------- Run | Yrd Mat Mat Min Exi Min Mat Fac Sto Machines Accessed 16 | . 3 2 . . . 4 6 1 Terminals 12 | . 2 2 . . . 3 4 1 Fabricators 1 | . . . . . . . 1 . Repair Stations . | . . . . . . . . . Recycling Units 2 | . 1 . . . . . 1 . Scanalyzers 1 | . . . . . . 1 . . Garrison Access . | . . . . . . . . . Total Hacks 42 | . 6 6 . . . 9 17 4 Successful 23 | . 3 2 . . . 4 10 4 Failed 19 | . 3 4 . . . 5 7 . Catastrophic 2 | . . 1 . . . . 1 . Database Lockouts . | . . . . . . . . . Manual 7 | . . . . 1 . 3 3 . Terminals 36 | . 5 6 . . . 7 14 4 Fabricators 1 | . . . . . . . 1 . Repair Stations . | . . . . . . . . . Recycling Units 3 | . 1 . . . . . 2 . Scanalyzers 2 | . . . . . . 2 . . Garrison Access . | . . . . . . . . . Terminal Hacks 18 | . 2 2 . . . 2 8 4 Prototype ID Bank 4 | . 2 . . . . . 1 1 Open DSF 1 | . . . . . . . 1 . Branch Access Points 1 | . . 1 . . . . . . Emergency Access Points 1 | . . . . . . . . 1 Alert Level 1 | . . . . . . . 1 . Locate Traps 3 | . . . . . . 1 2 . Dispatch Records 2 | . . . . . . . 1 1 Maintenance Status 1 | . . . . . . . . 1 Investigation Status 1 | . . . . . . 1 . . Registered Components 1 | . . . . . . . 1 . Registered Prototypes 1 | . . . . . . . 1 . Zone Layout 1 | . . 1 . . . . . . Fabricator Hacks 1 | . . . . . . . 1 . Network Status 1 | . . . . . . . 1 . Repair Station Hacks . | . . . . . . . . . Recycling Unit Hacks 1 | . 1 . . . . . . . Report Inventory 1 | . 1 . . . . . . . Scanalyzer 1 | . . . . . . 1 . . Insert Component 1 | . . . . . . 1 . . Garrison Access Hacks . | . . . . . . . . . Unauthorized Hacks 2 | . . . . . . 1 1 . Terminals 2 | . . . . . . 1 1 . Assimilate 2 | . . . . . . 1 1 . Fabricators . | . . . . . . . . . Repair Stations . | . . . . . . . . . Recycling Units . | . . . . . . . . . Scanalyzers . | . . . . . . . . . Garrison Access . | . . . . . . . . . Data Cores Recovered 1 | . 1 . . . . . . . Used . | . . . . . . . . . Hacking Detections 11 | . 1 2 . . . 4 4 . Full Trace Events 2 | . . 1 . . . 1 . . Feedback Events . | . . . . . . . . . Feedback Blocked . | . . . . . . . . . Robot Schematics Acquired . | . . . . . . . . . Robots Built . | . . . . . . . . . Authchips . | . . . . . . . . . Time . | . . . . . . . . . Total Robot Build Rating . | . . . . . . . . . Part Schematics Acquired . | . . . . . . . . . Parts Built . | . . . . . . . . . Authchips . | . . . . . . . . . Time . | . . . . . . . . . Total Part Build Rating . | . . . . . . . . . Parts Repaired . | . . . . . . . . . Time . | . . . . . . . . . Parts Recycled . | . . . . . . . . . Recycled Matter . | . . . . . . . . . Retrieved Matter . | . . . . . . . . . Retrieved Components . | . . . . . . . . . Parts Scanalyzed 1 | . . . . . . 1 . . Part Schematics Acquired . | . . . . . . . . . Parts Damaged . | . . . . . . . . . Bothacking | -11 -10 -9 -9 -9 -8 -8 -7 -7 ------------ Run | Yrd Mat Mat Min Exi Min Mat Fac Sto Used RIF Installer . | . . . . . . . . . Robots Hacked . | . . . . . . . . . Non-combat . | . . . . . . . . . Combat . | . . . . . . . . . Robot Hacks Applied . | . . . . . . . . . Relay Couplers Released . | . . . . . . . . . Fabnet Peak Effective % . | . . . . . . . . . Robots Rewired . | . . . . . . . . . Allies Hacked . | . . . . . . . . . Hacks Repelled . | . . . . . . . . . Allies | -11 -10 -9 -9 -9 -8 -8 -7 -7 -------- Run | Yrd Mat Mat Min Exi Min Mat Fac Sto Total Allies 1 | . . . . . . . 1 . Largest Group 1 | . . . . . . . 1 . Highest-Rated Group 26 | . . . . . . . 26 . Highest-Rated Ally 26 | . . . . . . . 26 . Total Orders . | . . . . . . . . . Ally Attacks . | . . . . . . . . . Total Damage . | . . . . . . . . . Kills . | . . . . . . . . . Allies Corrupted . | . . . . . . . . . Allies Melted . | . . . . . . . . . Intel | -11 -10 -9 -9 -9 -8 -8 -7 -7 ------- Run | Yrd Mat Mat Min Exi Min Mat Fac Sto Robot Analysis Total . | . . . . . . . . . Derelict Logs Recovered 3 | . . . 3 . . . . . Drone Launches . | . . . . . . . . . Drone Recoveries . | . . . . . . . . . Exploration | -11 -10 -9 -9 -9 -8 -8 -7 -7 ------------- Run | Yrd Mat Mat Min Exi Min Mat Fac Sto Turns Passed 4829 | 98 364 723 422 253 187 743 1486 553 Spaces Moved 3407 | 66 321 454 354 230 143 505 1106 228 Core 27 | 4 . . . . . . 15 8 Treads . | . . . . . . . . . Legs 220 | . . . . . . . . 220 Wheels 3160 | 62 321 454 354 230 143 505 1091 . Hover . | . . . . . . . . . Flight . | . . . . . . . . . Fastest Speed 50 | 50 80 95 105 105 105 90 50 100 Average Speed 106 | 83 83 103 105 105 105 104 103 182 Slowest Speed 260 | 90 95 105 105 105 105 120 180 260 Overloaded Moves . | . . . . . . . . . Propulsion Burnouts . | . . . . . . . . . Robots Hopped . | . . . . . . . . . Cave-ins Triggered . | . . . . . . . . . Exploration Rate (%) 39 | 3 42 48 55 63 34 41 36 29 Regions Visited 8 Branch Regions 4 Pre-discovered Areas 1 | . . . 1 . . . . . Known Exits Taken 4 | . 1 1 . . . 1 1 . Unknown Exits Taken 4 | 1 . . 1 1 1 . . . Scrap Searched 1 | . . . 1 . . . . . Spaces Dug 11 | . . . . . . 11 . . Terrain Destroyed 148 | . . . . . . 141 7 . Melee . | . . . . . . . . . Projectile 1 | . . . . . . . 1 . AOE 147 | . . . . . . 141 6 . Terrain Rammed . | . . . . . . . . . Walls Destroyed . | . . . . . . . . . Machines Disabled . | . . . . . . . . . Actions | -11 -10 -9 -9 -9 -8 -8 -7 -7 --------- Run | Yrd Mat Mat Min Exi Min Mat Fac Sto Total 4116 | 93 367 584 380 242 161 621 1341 327 Wait 206 | . 6 17 3 . 10 18 94 58 Move 3399 | 65 320 453 353 229 142 504 1105 228 Hop . | . . . . . . . . . Pick Up 79 | 13 8 19 2 . . 10 22 5 Fast Attach 29 | . 1 2 2 6 . 4 8 6 Attach 42 | 6 2 3 . . . 14 14 3 Detach 6 | . . . . 1 . 2 3 . Swap 37 | 1 1 8 4 . . 6 14 3 Drop 51 | . 2 16 4 6 . 6 14 3 Fire 214 | 8 27 66 12 . 9 47 45 . Melee 53 | . . . . . . 10 22 21 Ram . | . . . . . . . . . Kick . | . . . . . . . . . Crush . | . . . . . . . . . Escape Stasis . | . . . . . . . . . Rewire . | . . . . . . . . . Trap . | . . . . . . . . . Miscellaneous . | . . . . . . . . . Route ------- -11/Scrapyard -10/Materials -9/Materials (discovered 4 exits: *Mat x2 / *Min x2) -9/Mines (discovered 2 exits: *Mat / *Exi) -9/Exiles -8/Mines -8/Materials (discovered 2 exits: *Fac x2) -7/Factory (discovered 3 exits: *Fac / *Sto / *Low) -7/Storage History --------- Turn | Location | Event 31 | -11/Scrapyard | Discovered new exit (range 14) 99 | -11/Scrapyard | Entered Materials 133 | -10/Materials | Discovered new exit (range 13) 301 | -10/Materials | Build established: Mutant 433 | -10/Materials | Identified exit to Materials 463 | -10/Materials | Entered another Materials area 463 | -9/Materials | Evolved 2 slots: Utility x2 672 | -9/Materials | Discovered new exit (range 16) 748 | -9/Materials | Identified exit to Mines 879 | -9/Materials | Discovered new exit (range 15) 1186 | -9/Materials | Entered Mines 1196 | -9/Mines | Learned Materials emergency access door positions 1202 | -9/Mines | Joined a pair of Derelicts in attacking an 0b10 outpost 1239 | -9/Mines | Found a damaged Exp. Sensor Array with a note attached 1241 | -9/Mines | Found Prototype Device 1242 | -9/Mines | Identified Exp. Sensor Array 1263 | -9/Mines | Learned location of 1 exit from Proximity Caves 1346 | -9/Mines | Destroyed YI-UF0 1355 | -9/Mines | Discovered new exit (range 15) 1360 | -9/Mines | Received a Rocket Launcher from a helpful Derelict 1575 | -9/Mines | Learned location of Storage (-7) 1604 | -9/Mines | Deemed a non-threat by the Exiles lab entrance 1604 | -9/Mines | Discovered new exit (range 5) 1608 | -9/Mines | Entered Exiles 1633 | -9/Exiles | Met 8R-AWN 1653 | -9/Exiles | Met EX-HEX 1685 | -9/Exiles | Met EX-BIN 1697 | -9/Exiles | Aligned with FarCom system 1698 | -9/Exiles | Given EX-Vault access code 1723 | -9/Exiles | Opened EX-Vault 1730 | -9/Exiles | Found Prototype Energy Cannon 1730 | -9/Exiles | Identified Latent Energy Streamer 1733 | -9/Exiles | Found Prototype Device 1733 | -9/Exiles | Identified Trap Reconfigurator 1737 | -9/Exiles | Found Prototype Device 1737 | -9/Exiles | Identified Skeleton Box 1771 | -9/Exiles | Warned to stay clear of 0b10 Research branches 1802 | -9/Exiles | Met EX-DEC 1850 | -9/Exiles | Discovered new exit (range 14) 1861 | -9/Exiles | Left Exiles lab with Trap Reconfigurator 1861 | -9/Exiles | Entered Mines 2043 | -8/Mines | Discovered new exit (range 5) 2048 | -8/Mines | Entered Materials 2048 | -8/Materials | Evolved 2 slots: Utility x2 2220 | -8/Materials | Discovered new exit (range 15) 2379 | -8/Materials | Build established: Hacker-Mutant 2723 | -8/Materials | Discovered new exit (range 11) 2737 | -8/Materials | Core integrity fell below 50% 2768 | -8/Materials | Core integrity fell below 20% 2791 | -8/Materials | Identified exit to Factory 2791 | -8/Materials | Entered Factory 2791 | -7/Factory | Evolved 2 slots: Utility x1, Weapon x1 2813 | -7/Factory | Lost 12 parts (2p3n2u5w) 3504 | -7/Factory | Discovered new exit (range 9) 3521 | -7/Factory | Identified exit to Lower Caves 3660 | -7/Factory | Discovered new exit (range 8) 3672 | -7/Factory | Identified exit to Factory 3825 | -7/Factory | Cargo convoy interrupted 4188 | -7/Factory | Discovered new exit (range 9) 4270 | -7/Factory | Core integrity fell below 50% 4275 | -7/Factory | Identified exit to Storage 4276 | -7/Factory | Core integrity fell below 20% 4277 | -7/Factory | Entered Storage 4306 | -7/Storage | Lost 7 parts (3u4w) 4650 | -7/Storage | Build established: Assassin 4830 | -7/Storage | Destroyed by S-27 Virus with Autogun Last Messages --------------- W-25 Informer sends out distress signal. K-01 Serf collects debris. Sneak attack on A-02 Transporter. Critical hit (Burn: +37). A-02 Transporter calls for reinforcements. ALERT: Hostile activity reported, dispatching reinforcements to area. R-06 Scavenger collects Mic. Nuclear Core. G-47 Trooper destroyed. R-06 Scavenger collects Imp. Heat Sink. K-01 Serf collects debris. K-01 Serf Lgt. Ion Engine severed. Katana follow-up attack on K-01 Serf. Acquired 44 matter. Great Axe destroyed. 4G/GA3D5K,S6H#O5KAE1K8X&AF,UUXTU#5 Imp. Light Armor Plating destroyed. P-60 Hacker Shock Rifle severed. P-60 Hacker destroyed. Acquired 40 matter. Map ----- +----------------------------------------------------+ | | | | | | | ?????????????????????????????????????????????? | | ?????????????????????????????????????????????? | | ?????????????????????????????????????????????? | | ?????????????????????????????????????????????? | | ?????????????????????????????????????????????? | | ?????????????????????????????????????????????? | | ?????????????????????????????????????????????? | | ?????????????????????????????????????????????? | | ?????????????????????????????????????????????? | | ?????????????????????????????????????????????? | | ?????????????????????????????????????????????? | | ?????????????????????????????????????????????? | | ?????????????????????????????????????????????? | | ?????????????????????????????????????????????? | | ?????????????????????????????????????????????? | | ?????????????????????????????????????????????? | | ???????????????????????###+###???????????????? | | ???????????????????????# #???????????????? | | ???????????????????????# #???????????????? | | ???????????????????????# a #???????????????? | | ???????????????????????# #???????????????? | | ???????????????????????# #???????????????? | | ????????????#############@ #????????????????? | | ????????a???# #!! #????????????????? | | ????????????# # = #????????????????? | | ????????????# *#/[[# ??????? | | ????????????# +%/ + ""?????????? | | ????????????# *#*! # !! ""?????????? | | ????????????# # #????????????????? | | ????????????# # #????????????????? | | ????????????######/###### #????????????????? | | ??######+######### #????# #????????????????? | | ??# #????# #????????????????? | | ??# ##### #????# #????????????????? | | ??# #???# #????? s #????????????????? | | ??######## #???#Y#????? #????????????????? | | ??? ??# #??????????? +????????????????? | | ??# """ ?# #??r????????s #????????????????? | | ??# """ # #??????????? s#????????????????? | | ??# """ # #??????????? s#????????????????? | | ??# + +??????????? ?????????????????? | | ??# # #????????????k??????????????????? | | ??# ??# #???????????????????????????????? | | ??# ????# +???????????????????????????????? | | ??#??????# #???????????????????????????????? | | ?????????# #???????????????????????????????? | | ?????????# #???????????????????????????????? | +----------------------------------------------------+ Best States ------------- Heat Dissipation 34 Energy Generation 18 Energy Capacity 310 Matter Stores 300 Matter Capacity 300 Sight Range 16 Robot Scan Range 20 Terrain Scan Density 10 Armor Coverage 450 Propulsion Shielding 33 Evasion (%) 50 Targeting Accuracy 6 Melee Accuracy 12 Core Analysis 6 Offensive Hacking 20 Trap Extractor Capacity 6 Item Schematics ----------------- None Robot Schematics ------------------ None Fabricated ------------ Nothing Alien Tech Used ----------------- None Achievements -------------- None Challenges ------------ None Game ------ Seed ImprinterNeutronTearclaws Manual? 0 Play Time 01:12:16 Cumulative 55.5 hours Start 2024.04.21 @ 11:40:16 End 2024.04.21 @ 22:35:35 Sessions 3 Manual Loads 0 Difficulty Rogue Special Mode None Game No. 62 Rogue 53 Adventurer 9 Explorer 0 Win Type - Total 0 Types 0/0/0/0/0/0/0/0/0 Lore% 32 Gallery% 48 Achievement% 37 Wizard Run 0 Options --------- Layout 1 ASCII 0 Keyboard 0 Movement Mouse Keybinds 0 Fullscreen 1 Font 24/Smallcaps Map View 50x35 Zoom Use 0% Tactical HUD 0 Map Filters NONE Filters NONE Steam 1 RUN: ee479b0e-98f8-4479-a409-7cb4e69ad497